Workbook

Sheet تكاليف إعادة التصميم
B1: ورقة العمل "تكاليف إعادة تصميم المطبخ"
B3: الفئة | C3: العناصر | D3: المقاس | E3: التكلفة المقدرة | F3: التكلفة الفعلية | G3: إجمالي التكلفة المقدرة | H3: إجمالي التكلفة الفعلية
B4: الخزانات | C4: الخزانات الأرضية: تصميم نمطي قياسي (يُحدد القياس بوحدة القدم) | D4: 25 | E4: ر.س.‏ 5.00 | G4: =البيانات[[#This Row],[المقاس]]*البيانات[[#This Row],[التكلفة المقدرة]] -> ر.س.‏ 125 | H4: =البيانات[[#This Row],[المقاس]]*البيانات[[#This Row],[التكلفة الفعلية]] -> ر.س.‏ 0
B5: الخزانات | C5: الخزانات العلوية: تصميم نمطي قياسي (يُحدد القياس بوحدة القدم) | D5: 25 | E5: ر.س.‏ 3.50 | G5: =البيانات[[#This Row],[المقاس]]*البيانات[[#This Row],[التكلفة المقدرة]] -> ر.س.‏ 88 | H5: =البيانات[[#This Row],[المقاس]]*البيانات[[#This Row],[التكلفة الفعلية]] -> ر.س.‏ 0
B6: أجهزة التنظيف | C6: غسالة الأطباق: مقياس قياسي | D6: 1 | E6: ر.س.‏ 250.00 | G6: =البيانات[[#This Row],[المقاس]]*البيانات[[#This Row],[التكلفة المقدرة]] -> ر.س.‏ 250 | H6: =البيانات[[#This Row],[المقاس]]*البيانات[[#This Row],[التكلفة الفعلية]] -> ر.س.‏ 0
B7: أجهزة التنظيف | C7: وحدة تصريف النفايات: مقياس قياسي | D7: 1 | E7: ر.س.‏ 175.00 | G7: =البيانات[[#This Row],[المقاس]]*البيانات[[#This Row],[التكلفة المقدرة]] -> ر.س.‏ 175 | H7: =البيانات[[#This Row],[المقاس]]*البيانات[[#This Row],[التكلفة الفعلية]] -> ر.س.‏ 0
B8: أجهزة الطهي | C8: موقد الطهي: مقاس قياسي قابل للتركيب | D8: 1 | E8: ر.س.‏ 375.00 | G8: =البيانات[[#This Row],[المقاس]]*البيانات[[#This Row],[التكلفة المقدرة]] -> ر.س.‏ 375 | H8: =البيانات[[#This Row],[المقاس]]*البيانات[[#This Row],[التكلفة الفعلية]] -> ر.س.‏ 0
B9: أجهزة الطهي | C9: ميكروويف: مقياس قياسي | D9: 1 | E9: ر.س.‏ 300.00 | G9: =البيانات[[#This Row],[المقاس]]*البيانات[[#This Row],[التكلفة المقدرة]] -> ر.س.‏ 300 | H9: =البيانات[[#This Row],[المقاس]]*البيانات[[#This Row],[التكلفة الفعلية]] -> ر.س.‏ 0
B10: الطاولات | C10: سطح صلب (يُحدد القياس بوحدة القدم) | D10: 23 | E10: ر.س.‏ 10.00 | G10: =البيانات[[#This Row],[المقاس]]*البيانات[[#This Row],[التكلفة المقدرة]] -> ر.س.‏ 230 | H10: =البيانات[[#This Row],[المقاس]]*البيانات[[#This Row],[التكلفة الفعلية]] -> ر.س.‏ 0
B11: الأبواب | C11: الجزء الداخلي: قلب صلب مكسو بقشرة خشبية | D11: 1 | E11: ر.س.‏ 65.00 | G11: =البيانات[[#This Row],[المقاس]]*البيانات[[#This Row],[التكلفة المقدرة]] -> ر.س.‏ 65 | H11: =البيانات[[#This Row],[المقاس]]*البيانات[[#This Row],[التكلفة الفعلية]] -> ر.س.‏ 0
B12: أشياء إضافية | C12: الأشياء الإضافية: وحدة تسخين فوري للمياه قياسية | D12: 1 | E12: ر.س.‏ 120.00 | G12: =البيانات[[#This Row],[المقاس]]*البيانات[[#This Row],[التكلفة المقدرة]] -> ر.س.‏ 120 | H12: =البيانات[[#This Row],[المقاس]]*البيانات[[#This Row],[التكلفة الفعلية]] -> ر.س.‏ 0
B13: أشياء إضافية | C13: الأشياء الإضافية: وحدة توزيع الصابون | D13: 1 | E13: ر.س.‏ 40.00 | G13: =البيانات[[#This Row],[المقاس]]*البيانات[[#This Row],[التكلفة المقدرة]] -> ر.س.‏ 40 | H13: =البيانات[[#This Row],[المقاس]]*البيانات[[#This Row],[التكلفة الفعلية]] -> ر.س.‏ 0
B14: الصنابير | C14: الصنبور: تصميم قياسي بذراع رفع | D14: 1 | E14: ر.س.‏ 130.00 | G14: =البيانات[[#This Row],[المقاس]]*البيانات[[#This Row],[التكلفة المقدرة]] -> ر.س.‏ 130 | H14: =البيانات[[#This Row],[المقاس]]*البيانات[[#This Row],[التكلفة الفعلية]] -> ر.س.‏ 0
B15: الأرضيات | C15: حوض الصنوبر (بمقاس مُحدد بوحدة القدم المربع) | D15: 165 | E15: ر.س.‏ 3.50 | G15: =البيانات[[#This Row],[المقاس]]*البيانات[[#This Row],[التكلفة المقدرة]] -> ر.س.‏ 578 | H15: =البيانات[[#This Row],[المقاس]]*البيانات[[#This Row],[التكلفة الفعلية]] -> ر.س.‏ 0
B16: أجهزة غسيل الملابس | C16: الغسالة: مقياس قياسي | D16: 1 | E16: ر.س.‏ 500.00 | G16: =البيانات[[#This Row],[المقاس]]*البيانات[[#This Row],[التكلفة المقدرة]] -> ر.س.‏ 500 | H16: =البيانات[[#This Row],[المقاس]]*البيانات[[#This Row],[التكلفة الفعلية]] -> ر.س.‏ 0
B17: أجهزة غسيل الملابس | C17: المجفف: مقياس قياسي | D17: 1 | E17: ر.س.‏ 375.00 | G17: =البيانات[[#This Row],[المقاس]]*البيانات[[#This Row],[التكلفة المقدرة]] -> ر.س.‏ 375 | H17: =البيانات[[#This Row],[المقاس]]*البيانات[[#This Row],[التكلفة الفعلية]] -> ر.س.‏ 0
B18: الإضاءة | C18: الإضاءة: إضاءة جانبية | D18: 4 | E18: ر.س.‏ 35.00 | G18: =البيانات[[#This Row],[المقاس]]*البيانات[[#This Row],[التكلفة المقدرة]] -> ر.س.‏ 140 | H18: =البيانات[[#This Row],[المقاس]]*البيانات[[#This Row],[التكلفة الفعلية]] -> ر.س.‏ 0
B19: الثلاجات | C19: الثلاجة: تصميم فاخر مستقل | D19: 1 | E19: ر.س.‏ 1,200.00 | G19: =البيانات[[#This Row],[المقاس]]*البيانات[[#This Row],[التكلفة المقدرة]] -> ر.س.‏ 1,200 | H19: =البيانات[[#This Row],[المقاس]]*البيانات[[#This Row],[التكلفة الفعلية]] -> ر.س.‏ 0
B20: الأحواض | C20: تصميم فاخر بحوضين من الفولاذ المقاوم للصدأ | D20: 1 | E20: ر.س.‏ 125.00 | G20: =البيانات[[#This Row],[المقاس]]*البيانات[[#This Row],[التكلفة المقدرة]] -> ر.س.‏ 125 | H20: =البيانات[[#This Row],[المقاس]]*البيانات[[#This Row],[التكلفة الفعلية]] -> ر.س.‏ 0
B21: التهوية | C21: وحدة الشفط: تصميم قياسي بأنابيب للتهوية | D21: 1 | E21: ر.س.‏ 180.00 | G21: =البيانات[[#This Row],[المقاس]]*البيانات[[#This Row],[التكلفة المقدرة]] -> ر.س.‏ 180 | H21: =البيانات[[#This Row],[المقاس]]*البيانات[[#This Row],[التكلفة الفعلية]] -> ر.س.‏ 0
B22: الجدران | C22: لوح جداري (بمقاس مُحدد بالقدم المربع) | D22: 70 | E22: ر.س.‏ 2.00 | G22: =البيانات[[#This Row],[المقاس]]*البيانات[[#This Row],[التكلفة المقدرة]] -> ر.س.‏ 140 | H22: =البيانات[[#This Row],[المقاس]]*البيانات[[#This Row],[التكلفة الفعلية]] -> ر.س.‏ 0
B23: النوافذ | C23: بتصميم جرار | D23: 2 | E23: ر.س.‏ 120.00 | G23: =البيانات[[#This Row],[المقاس]]*البيانات[[#This Row],[التكلفة المقدرة]] -> ر.س.‏ 240 | H23: =البيانات[[#This Row],[المقاس]]*البيانات[[#This Row],[التكلفة الفعلية]] -> ر.س.‏ 0
B24: أخرى | G24: =البيانات[[#This Row],[المقاس]]*البيانات[[#This Row],[التكلفة المقدرة]] -> ر.س.‏ 0 | H24: =البيانات[[#This Row],[المقاس]]*البيانات[[#This Row],[التكلفة الفعلية]] -> ر.س.‏ 0
B25: الإجمالي | E25: =SUBTOTAL(109,البيانات[التكلفة المقدرة]) -> ر.س.‏ 4,014.00 | F25: =SUBTOTAL(109,البيانات[التكلفة الفعلية]) -> ر.س.‏ 0.00 | G25: =SUBTOTAL(109,البيانات[إجمالي التكلفة المقدرة]) -> ر.س.‏ 5,375.00 | H25: =SUBTOTAL(109,البيانات[إجمالي التكلفة الفعلية]) -> ر.س.‏ 0.00
B26: الإجمالي الفرعي | G26: =SUBTOTAL(109,البيانات[إجمالي التكلفة المقدرة]) -> ر.س.‏ 5,375.00 | H26: =SUBTOTAL(109,البيانات[إجمالي التكلفة الفعلية]) -> ر.س.‏ 0.00
B27: تكاليف غير متوقعة - 30% | G27: =G26*0.3 -> ر.س.‏ 1,612.50 | H27: =H26*0.3 -> ر.س.‏ 0.00
B28: الإجمالي | G28: =SUM(G26:G27) -> ر.س.‏ 6,987.50 | H28: =SUM(H26:H27) -> ر.س.‏ 0.00
